[Event "IV Zagreb Open 2019"]
[Site "Zagreb"]
[Date "2019.12.08"]
[Round "2.10"]
[White "Smith, Bryan"]
[Black "Cebalo, Miso"]
[Result "1-0"]
[ECO "B75"]
[WhiteElo "2428"]
[BlackElo "2171"]
[Annotator "RC"]
[PlyCount "85"]
[EventDate "2019.12.07"]
[EventType "swiss"]
[EventCountry "CRO"]
[SourceTitle "playchess.com"]
[Source "ChessBase"]
[SourceQuality "1"]
[TimeControl "40/5400+30:1800+30"]

1. e4 {[%emt 0:06:06]} c5 {[%emt 0:00:00]} 2. Nf3 {[%emt 0:00:45]} d6 {[%emt 0:00:19]} 3. d4 {[%emt 0:00:25]} cxd4 {[%emt 0:00:17]} 4. Nxd4 {[%emt 0:00:13]} Nf6 {[%emt 0:00:16]} 5. Nc3 {[%emt 0:00:16]} g6 {[%emt 0:02:23]} 6. Be3 {[%emt 0:00:38]} Bg7 {[%emt 0:00:40]} 7. f3 {[%emt 0:00:35]} a6 {[%emt 0:00:38]} 8. Qd2 {[%emt 0:02:13]} h5 {[%emt 0:01:49]} 9. Bc4 {[%emt 0:04:00]} b5 {[%emt 0:04:33]} 10. Bb3 {[%emt 0:00:17]} Bb7 {[%emt 0:00:25]} 11. O-O-O {[%emt 0:01:07]} Nbd7 {[%emt 0:00:12]} 12. Kb1 {[%emt 0:04:00]} Rc8 {[%emt 0:01:08]} 13. Bg5 {[%emt 0:07:02]} Qb6 {[%emt 0:03:56]} 14. Rhe1 {[%emt 0:03:35]} O-O {[%emt 0:03:54]} 15. Bh6 {[%emt 0:08:28]} Rfe8 {[%emt 0:19:35]} 16. Nf5 {[%emt 0:05:19]} Bh8 {[%emt 0:06:07]} 17. Be3 {[%emt 0:00:58]} Nc5 {[%emt 0:04:17]} 18. Nh6+ {[%emt 0:00:50]} Kh7 {[%emt 0:04:51]} 19. Bxf7 {[%emt 0:08:12]} Rf8 {[%emt 0:04:12]} 20. Bd4 {[%emt 0:01:55]} Bg7 {[%emt 0:10:24]} 21. Qg5 {[%emt 0:02:31]} Rxf7 {[%emt 0:00:14]} 22. Nxf7 {[%emt 0:00:24]} Rf8 {[%emt 0:01:57]} 23. e5 {[%emt 0:04:48]} Rxf7 {[%emt 0:05:25]} 24. exf6 {[%emt 0:00:20]} exf6 {[%emt 0:01:07]} 25. Qh4 {[%emt 0:03:40]} Qc6 {[%emt 0:03:29]} 26. Qg3 {[%emt 0:04:24]} b4 {[%emt 0:04:01]} 27. Ne4 {[%emt 0:05:40]} Nxe4 {[%emt 0:00:58]} 28. fxe4 {[%emt 0:01:07]} Bc8 {[%emt 0:05:18]} 29. b3 {[%emt 0:12:39]} Re7 {[%emt 0:02:23]} 30. Qf4 {[%emt 0:02:32]} Re6 {[%emt 0:00:28]} 31. g4 {[%emt 0:01:25]} Qb5 {[%emt 0:00:48]} 32. Bb2 {[%emt 0:01:25]} Bh6 {[%emt 0:01:41]} 33. Qf3 {[%emt 0:01:55]} hxg4 {[%emt 0:00:45]} 34. Qxg4 {[%emt 0:00:10]} Qc6 {[%emt 0:01:15]} 35. Qh4 {[%emt 0:01:41]} Kg7 {[%emt 0:01:55]} 36. Rd3 {[%emt 0:02:20]} g5 {[%emt 0:02:35]} 37. Qf2 {[%emt 0:00:12]} Kf7 {[%emt 0:01:00]} 38. Rf3 {[%emt 0:01:28]} Bg7 {[%emt 0:00:35]} 39. Rf1 {[%emt 0:02:01]} Qxe4 {[%emt 0:01:05]} 40. Bxf6 {[%emt 0:00:00]} g4 {[%emt 0:00:00]} 41. Rf4 {[%emt 0:01:38]} Qg6 {[%emt 0:03:35]} 42. Bxg7+ {[%emt 0:00:47]} Kxg7 {[%emt 0:00:24]} 43. Rf7+ {[%emt 0:00:23]} 1-0

[Event "IV Zagreb Open 2019"]
[Site "Zagreb"]
[Date "2019.12.08"]
[Round "2.11"]
[White "Kristovic, Marijan"]
[Black "Lalic, Bogdan"]
[Result "1/2-1/2"]
[ECO "B10"]
[WhiteElo "2179"]
[BlackElo "2414"]
[Annotator "RC"]
[PlyCount "28"]
[EventDate "2019.12.07"]
[EventType "swiss"]
[EventCountry "CRO"]
[SourceTitle "playchess.com"]
[Source "ChessBase"]
[SourceQuality "1"]
[TimeControl "40/5400+30:1800+30"]

1. e4 {[%emt 0:00:00]} c6 {[%emt 0:00:00]} 2. c4 {[%emt 0:00:00]} d5 {[%emt 0:00:00]} 3. exd5 {[%emt 0:00:00]} cxd5 {[%emt 0:00:00]} 4. cxd5 {[%emt 0:00:00]} Nf6 {[%emt 0:00:00]} 5. Nc3 {[%emt 0:00:00]} Nxd5 {[%emt 0:00:00]} 6. Bc4 {[%emt 0:00:04]} Nb6 {[%emt 0:00:10]} 7. Bb3 {[%emt 0:00:40]} Bf5 {[%emt 0:00:35]} 8. d4 {[%emt 0:00:16]} e6 {[%emt 0:00:08]} 9. Nge2 {[%emt 0:00:05]} Nc6 {[%emt 0:00:16]} 10. O-O {[%emt 0:00:19]} Be7 {[%emt 0:00:32]} 11. Be3 {[%emt 0:17:26]} O-O {[%emt 0:00:52]} 12. Ng3 {[%emt 0:22:53]} Bg6 {[%emt 0:01:03]} 13. d5 {[%emt 0:00:43]} Nxd5 {[%emt 0:00:15]} 14. Nxd5 {[%emt 0:00:10]} exd5 {[%emt 0:00:05]} 1/2-1/2

[Event "IV Zagreb Open 2019"]
[Site "Zagreb"]
[Date "2019.12.09"]
[Round "4.4"]
[White "Plenca, Jadranko"]
[Black "Enchev, Ivajlo"]
[Result "1/2-1/2"]
[ECO "C84"]
[WhiteElo "2453"]
[BlackElo "2482"]
[Annotator "RC"]
[PlyCount "65"]
[EventDate "2019.12.07"]
[EventType "swiss"]
[EventCountry "CRO"]
[SourceTitle "playchess.com"]
[Source "ChessBase"]
[SourceQuality "1"]
[TimeControl "40/5400+30:1800+30"]

1. e4 {[%emt 0:00:00]} e5 {[%emt 0:00:00]} 2. Nf3 {[%emt 0:00:01]} Nc6 {[%emt 0:00:15]} 3. Bb5 {[%emt 0:00:19]} a6 {[%emt 0:00:09]} 4. Ba4 {[%emt 0:00:04]} Nf6 {[%emt 0:00:30]} 5. O-O {[%emt 0:00:46]} Be7 {[%emt 0:00:26]} 6. d3 {[%emt 0:00:36]} b5 {[%emt 0:00:57]} 7. Bb3 {[%emt 0:00:10]} d6 {[%emt 0:00:22]} 8. a4 {[%emt 0:00:28]} Bd7 {[%emt 0:07:06]} 9. c3 {[%emt 0:00:39]} O-O {[%emt 0:00:22]} 10. Bc2 {[%emt 0:00:20]} b4 {[%emt 0:02:36]} 11. Re1 {[%emt 0:03:07]} Re8 {[%emt 0:09:31]} 12. Nbd2 {[%emt 0:03:11]} bxc3 {[%emt 0:05:53]} 13. bxc3 {[%emt 0:00:06]} d5 {[%emt 0:01:13]} 14. h3 {[%emt 0:04:54]} dxe4 {[%emt 0:03:21]} 15. dxe4 {[%emt 0:02:08]} Bc5 {[%emt 0:01:53]} 16. a5 {[%emt 0:11:31]} h6 {[%emt 0:02:59]} 17. Nc4 {[%emt 0:07:28]} Qb8 {[%emt 0:02:49]} 18. Qe2 {[%emt 0:10:17]} Qa7 {[%emt 0:01:45]} 19. Ba4 {[%emt 0:07:43]} Rad8 {[%emt 0:05:12]} 20. Rd1 {[%emt 0:09:59]} Nb8 {[%emt 0:04:00]} 21. Bxd7 {[%emt 0:02:46]} Rxd7 {[%emt 0:01:58]} 22. Bd2 {[%emt 0:06:51]} Nc6 {[%emt 0:01:56]} 23. Nh4 {[%emt 0:05:22]} Red8 {[%emt 0:04:18]} 24. Nf5 {[%emt 0:00:54]} Kh7 {[%emt 0:02:50]} 25. Be1 {[%emt 0:08:17]} Rxd1 {[%emt 0:02:10]} 26. Rxd1 {[%emt 0:00:04]} Rxd1 {[%emt 0:00:24]} 27. Qxd1 {[%emt 0:00:04]} g6 {[%emt 0:00:47]} 28. Nh4 {[%emt 0:06:25]} Qb7 {[%emt 0:04:08]} 29. Nf3 {[%emt 0:02:11]} Qb5 {[%emt 0:01:09]} 30. Ncxe5 {[%emt 0:01:22]} Nxe5 {[%emt 0:00:35]} 31. Nxe5 {[%emt 0:00:05]} Bxf2+ {[%emt 0:02:15]} 32. Bxf2 {[%emt 0:00:06]} Qxe5 {[%emt 0:00:03]} 33. Bd4 {[%emt 0:01:36]} 1/2-1/2

[Event "IV Zagreb Open 2019"]
[Site "Zagreb"]
[Date "2019.12.09"]
[Round "4.9"]
[White "Nguyen, Piotr"]
[Black "Biti, Ozren"]
[Result "1-0"]
[ECO "A41"]
[WhiteElo "2413"]
[BlackElo "2370"]
[Annotator "RC"]
[PlyCount "107"]
[EventDate "2019.12.07"]
[EventType "swiss"]
[EventCountry "CRO"]
[SourceTitle "playchess.com"]
[Source "ChessBase"]
[SourceQuality "1"]
[TimeControl "40/5400+30:1800+30"]

1. d4 {[%emt 0:00:00]} d6 {[%emt 0:00:01]} 2. Nf3 {[%emt 0:00:00]} g6 {[%emt 0:00:34]} 3. g3 {[%emt 0:00:05]} Bg7 {[%emt 0:00:41]} 4. Bg2 {[%emt 0:00:06]} Nd7 {[%emt 0:03:55]} 5. O-O {[%emt 0:00:20]} e5 {[%emt 0:00:04]} 6. dxe5 {[%emt 0:00:24]} dxe5 {[%emt 0:00:18]} 7. Nc3 {[%emt 0:00:21]} Ngf6 {[%emt 0:02:05]} 8. Nd2 {[%emt 0:02:41]} O-O {[%emt 0:02:41]} 9. a4 {[%emt 0:00:34]} Re8 {[%emt 0:09:54]} 10. a5 {[%emt 0:00:31]} a6 {[%emt 0:01:54]} 11. Nc4 {[%emt 0:00:28]} Qe7 {[%emt 0:01:36]} 12. e4 {[%emt 0:03:16]} Nc5 {[%emt 0:06:30]} 13. Bg5 {[%emt 0:04:00]} c6 {[%emt 0:15:20]} 14. Qd6 {[%emt 0:09:40]} Qxd6 {[%emt 0:22:10]} 15. Nxd6 {[%emt 0:00:07]} Rd8 {[%emt 0:00:35]} 16. Rad1 {[%emt 0:18:49]} Ne6 {[%emt 0:01:59]} 17. Bxf6 {[%emt 0:01:24]} Bxf6 {[%emt 0:00:06]} 18. Na4 {[%emt 0:02:46]} Nd4 {[%emt 0:07:18]} 19. Nb6 {[%emt 0:05:43]} Bg4 {[%emt 0:05:16]} 20. f3 {[%emt 0:01:51]} Be6 {[%emt 0:00:46]} 21. Nxa8 {[%emt 0:18:23]} Rxa8 {[%emt 0:00:18]} 22. c3 {[%emt 0:03:48]} Nb3 {[%emt 0:01:20]} 23. f4 {[%emt 0:01:25]} Nxa5 {[%emt 0:04:26]} 24. f5 {[%emt 0:10:16]} Bb3 {[%emt 0:00:35]} 25. fxg6 {[%emt 0:03:03]} fxg6 {[%emt 0:04:06]} 26. Rxf6 {[%emt 0:07:14]} Bxd1 {[%emt 0:00:07]} 27. b4 {[%emt 0:00:02]} Nb3 {[%emt 0:00:09]} 28. Bh3 {[%emt 0:01:07]} Nd2 {[%emt 0:06:31]} 29. Be6+ {[%emt 0:01:40]} Kh8 {[%emt 0:00:55]} 30. Kf2 {[%emt 0:04:03]} Rd8 {[%emt 0:01:51]} 31. Nxb7 {[%emt 0:00:35]} Nxe4+ {[%emt 0:00:35]} 32. Ke3 {[%emt 0:00:11]} Nxf6 {[%emt 0:00:50]} 33. Nxd8 {[%emt 0:00:04]} Bg4 {[%emt 0:00:31]} 34. Bxg4 {[%emt 0:00:40]} Nxg4+ {[%emt 0:00:01]} 35. Ke4 {[%emt 0:00:04]} Nxh2 {[%emt 0:00:36]} 36. Nxc6 {[%emt 0:00:06]} Nf1 {[%emt 0:00:09]} 37. c4 {[%emt 0:02:03]} Kg7 {[%emt 0:00:19]} 38. b5 {[%emt 0:00:34]} Nd2+ {[%emt 0:00:19]} 39. Kd5 {[%emt 0:00:30]} Nxc4 {[%emt 0:01:02]} 40. bxa6 {[%emt 0:00:00]} Nb6+ {[%emt 0:00:00]} 41. Kxe5 {[%emt 0:07:30]} h5 {[%emt 0:12:22]} 42. Kd6 {[%emt 0:02:30]} g5 {[%emt 0:00:26]} 43. Nd4 {[%emt 0:02:48]} h4 {[%emt 0:01:15]} 44. gxh4 {[%emt 0:03:19]} gxh4 {[%emt 0:00:58]} 45. Nf5+ {[%emt 0:01:04]} Kf6 {[%emt 0:01:12]} 46. Nxh4 {[%emt 0:00:15]} Nc8+ {[%emt 0:00:18]} 47. Kc7 {[%emt 0:00:47]} Na7 {[%emt 0:00:08]} 48. Kb6 {[%emt 0:00:57]} Nc8+ {[%emt 0:00:15]} 49. Kb7 {[%emt 0:00:07]} Nd6+ {[%emt 0:00:16]} 50. Kc6 {[%emt 0:00:09]} Nc8 {[%emt 0:00:15]} 51. Nf3 {[%emt 0:00:16]} Ke7 {[%emt 0:01:00]} 52. Kc7 {[%emt 0:00:32]} Nd6 {[%emt 0:00:50]} 53. Nd4 {[%emt 0:00:14]} Ne8+ {[%emt 0:00:22]} 54. Kc6 {[%emt 0:00:55]} 1-0

[Event "IV Zagreb Open 2019"]
[Site "Zagreb"]
[Date "2019.12.09"]
[Round "4.10"]
[White "Drnovsek, Gal"]
[Black "Pavic, Filip"]
[Result "1/2-1/2"]
[ECO "E32"]
[WhiteElo "2388"]
[BlackElo "2238"]
[Annotator "RC"]
[PlyCount "51"]
[EventDate "2019.12.07"]
[EventType "swiss"]
[EventCountry "CRO"]
[SourceTitle "playchess.com"]
[Source "ChessBase"]
[SourceQuality "1"]
[TimeControl "40/5400+30:1800+30"]

1. d4 {[%emt 0:01:31]} Nf6 {[%emt 0:00:00]} 2. c4 {[%emt 0:00:15]} e6 {[%emt 0:00:00]} 3. Nc3 {[%emt 0:00:05]} Bb4 {[%emt 0:00:02]} 4. Qc2 {[%emt 0:00:41]} O-O {[%emt 0:00:25]} 5. Nf3 {[%emt 0:00:05]} d5 {[%emt 0:00:22]} 6. Bg5 {[%emt 0:00:21]} h6 {[%emt 0:02:44]} 7. Bh4 {[%emt 0:02:58]} c5 {[%emt 0:02:19]} 8. dxc5 {[%emt 0:00:16]} Nbd7 {[%emt 0:00:53]} 9. a3 {[%emt 0:05:11]} Qa5 {[%emt 0:00:40]} 10. Rc1 {[%emt 0:03:30]} Bxc3+ {[%emt 0:00:37]} 11. Qxc3 {[%emt 0:00:04]} Qxc3+ {[%emt 0:02:17]} 12. Rxc3 {[%emt 0:00:15]} Ne4 {[%emt 0:16:16]} 13. Rc2 {[%emt 0:04:29]} g5 {[%emt 0:05:02]} 14. Bg3 {[%emt 0:00:37]} Ndxc5 {[%emt 0:05:14]} 15. e3 {[%emt 0:18:55]} Bd7 {[%emt 0:03:56]} 16. b4 {[%emt 0:12:50]} Ba4 {[%emt 0:08:49]} 17. Rb2 {[%emt 0:00:40]} Nd7 {[%emt 0:01:57]} 18. Nd2 {[%emt 0:08:07]} Nxd2 {[%emt 0:14:40]} 19. Kxd2 {[%emt 0:01:16]} dxc4 {[%emt 0:01:43]} 20. Bxc4 {[%emt 0:00:06]} Rfd8 {[%emt 0:01:17]} 21. Bd3 {[%emt 0:06:47]} Rac8 {[%emt 0:11:40]} 22. Rc1 {[%emt 0:00:06]} Rxc1 {[%emt 0:01:31]} 23. Kxc1 {[%emt 0:00:31]} Ne5 {[%emt 0:00:16]} 24. Bxe5 {[%emt 0:00:42]} Rxd3 {[%emt 0:01:19]} 25. Rd2 {[%emt 0:00:05]} Rxd2 {[%emt 0:02:18]} 26. Kxd2 {[%emt 0:00:04]} 1/2-1/2

[Event "IV Zagreb Open 2019"]
[Site "Zagreb"]
[Date "2019.12.10"]
[Round "5.1"]
[White "Kozul, Zdenko"]
[Black "Smith, Bryan"]
[Result "1-0"]
[ECO "A61"]
[WhiteElo "2590"]
[BlackElo "2428"]
[Annotator "ChessBase"]
[PlyCount "73"]
[EventDate "2019.12.07"]
[EventType "swiss"]
[EventCountry "CRO"]
[SourceTitle "playchess.com"]
[Source "ChessBase"]
[SourceQuality "1"]
[TimeControl "40/5400+30:1800+30"]

1. d4 {[%emt 0:00:00]} Nf6 {[%emt 0:00:00]} 2. c4 {[%emt 0:00:00]} e6 {[%emt 0:00:00]} 3. Nf3 {[%emt 0:01:37]} c5 {[%emt 0:00:51]} 4. d5 {[%emt 0:00:10]} d6 {[%emt 0:00:13]} 5. Nc3 {[%emt 0:00:15]} exd5 {[%emt 0:00:07]} 6. cxd5 {[%emt 0:00:06]} g6 {[%emt 0:00:04]} 7. h3 {[%emt 0:02:28]} Bg7 {[%emt 0:00:20]} 8. Bf4 {[%emt 0:00:09]} O-O {[%emt 0:00:38]} 9. e3 {[%emt 0:00:07]} Na6 {[%emt 0:01:15]} 10. Bxa6 {[%emt 0:00:26]} bxa6 {[%emt 0:00:09]} 11. O-O {[%emt 0:00:03]} Bf5 {[%emt 0:17:04]} 12. Rc1 {[%emt 0:04:31]} Ne4 {[%emt 0:06:34]} 13. Nxe4 {[%emt 0:10:00]} Bxe4 {[%emt 0:00:21]} 14. Rc4 {[%emt 0:01:51]} Re8 {[%emt 0:06:26]} 15. b3 {[%emt 0:03:41]} h6 {[%emt 0:14:09]} 16. Ne1 {[%emt 0:12:20]} a5 {[%emt 0:07:10]} 17. g4 {[%emt 0:15:06]} g5 {[%emt 0:00:51]} 18. Bg3 {[%emt 0:00:07]} Bg6 {[%emt 0:02:10]} 19. Ng2 {[%emt 0:00:29]} Rb8 {[%emt 0:04:10]} 20. Kh2 {[%emt 0:04:21]} Rb4 {[%emt 0:04:10]} 21. f3 {[%emt 0:04:36]} f5 {[%emt 0:02:33]} 22. Be1 {[%emt 0:02:49]} h5 {[%emt 0:13:02]} 23. Bxb4 {[%emt 0:08:58]} axb4 {[%emt 0:00:06]} 24. gxf5 {[%emt 0:00:03]} Bxf5 {[%emt 0:00:12]} 25. f4 {[%emt 0:00:13]} g4 {[%emt 0:03:15]} 26. hxg4 {[%emt 0:00:33]} hxg4 {[%emt 0:03:29]} 27. Kg3 {[%emt 0:03:53]} Qf6 {[%emt 0:01:23]} 28. Rh1 {[%emt 0:00:16]} Qb2 {[%emt 0:02:18]} 29. Rh5 {[%emt 0:03:09]} Be4 {[%emt 0:02:58]} 30. Rxe4 {[%emt 0:00:57]} Rxe4 {[%emt 0:00:04]} 31. Qxg4 {[%emt 0:00:11]} Re8 {[%emt 0:02:28]} 32. Qg6 {[%emt 0:04:14]} Re7 {[%emt 0:00:35]} 33. Qxd6 {[%emt 0:01:03]} Bf8 {[%emt 0:00:50]} 34. Rg5+ {[%emt 0:00:44]} Rg7 {[%emt 0:00:25]} 35. Qe6+ {[%emt 0:00:14]} Kh8 {[%emt 0:00:09]} 36. d6 {[%emt 0:01:20]} Rxg5+ {[%emt 0:02:05]} 37. fxg5 {[%emt 0:00:07]} 1-0

[Event "IV Zagreb Open 2019"]
[Site "Zagreb"]
[Date "2019.12.10"]
[Round "5.2"]
[White "Janzelj, Tim"]
[Black "Nikolov, Momchil"]
[Result "1/2-1/2"]
[ECO "C88"]
[WhiteElo "2446"]
[BlackElo "2533"]
[Annotator "ChessBase"]
[PlyCount "87"]
[EventDate "2019.12.07"]
[EventType "swiss"]
[EventCountry "CRO"]
[SourceTitle "playchess.com"]
[Source "ChessBase"]
[SourceQuality "1"]
[TimeControl "40/5400+30:1800+30"]

1. e4 {[%emt 0:00:00]} e5 {[%emt 0:05:05]} 2. Nf3 {[%emt 0:00:00]} Nc6 {[%emt 0:00:07]} 3. Bb5 {[%emt 0:00:02]} a6 {[%emt 0:00:53]} 4. Ba4 {[%emt 0:00:10]} Nf6 {[%emt 0:00:37]} 5. O-O {[%emt 0:00:19]} Be7 {[%emt 0:01:15]} 6. Re1 {[%emt 0:00:33]} b5 {[%emt 0:00:19]} 7. Bb3 {[%emt 0:00:07]} d6 {[%emt 0:00:11]} 8. a4 {[%emt 0:00:36]} b4 {[%emt 0:01:51]} 9. d4 {[%emt 0:00:46]} exd4 {[%emt 0:16:58]} 10. Nxd4 {[%emt 0:02:38]} Nxd4 {[%emt 0:01:12]} 11. Qxd4 {[%emt 0:00:09]} O-O {[%emt 0:01:08]} 12. Nd2 {[%emt 0:13:26]} Rb8 {[%emt 0:05:11]} 13. Nc4 {[%emt 0:16:29]} Nd7 {[%emt 0:05:19]} 14. Bf4 {[%emt 0:06:36]} Nc5 {[%emt 0:02:42]} 15. Rad1 {[%emt 0:18:16]} Be6 {[%emt 0:11:07]} 16. Bg3 {[%emt 0:01:03]} Qe8 {[%emt 0:09:20]} 17. Na5 {[%emt 0:08:04]} Nxa4 {[%emt 0:06:17]} 18. Qa7 {[%emt 0:12:33]} Rc8 {[%emt 0:03:18]} 19. Ra1 {[%emt 0:10:03]} Nc5 {[%emt 0:03:39]} 20. Bd5 {[%emt 0:01:25]} Bxd5 {[%emt 0:15:47]} 21. exd5 {[%emt 0:00:01]} Qd7 {[%emt 0:00:10]} 22. Nb3 {[%emt 0:02:47]} Nxb3 {[%emt 0:00:38]} 23. cxb3 {[%emt 0:00:01]} Bf6 {[%emt 0:00:22]} 24. Rxa6 {[%emt 0:00:44]} Qf5 {[%emt 0:00:52]} 25. Rc6 {[%emt 0:01:51]} Qxd5 {[%emt 0:02:36]} 26. Rxc7 {[%emt 0:00:40]} Rce8 {[%emt 0:01:42]} 27. Rf1 {[%emt 0:00:42]} Re6 {[%emt 0:01:00]} 28. Rc4 {[%emt 0:01:50]} Qd2 {[%emt 0:01:24]} 29. h3 {[%emt 0:01:26]} d5 {[%emt 0:00:59]} 30. Bf4 {[%emt 0:00:45]} Qd3 {[%emt 0:01:24]} 31. Rxb4 {[%emt 0:00:42]} Bxb2 {[%emt 0:00:04]} 32. Rb8 {[%emt 0:00:36]} Ree8 {[%emt 0:00:40]} 33. Rxe8 {[%emt 0:00:24]} Rxe8 {[%emt 0:00:02]} 34. Qd7 {[%emt 0:00:19]} Qe4 {[%emt 0:02:12]} 35. b4 {[%emt 0:00:39]} h6 {[%emt 0:00:22]} 36. b5 {[%emt 0:00:34]} Re6 {[%emt 0:00:02]} 37. b6 {[%emt 0:00:16]} Qxf4 {[%emt 0:00:28]} 38. Qc8+ {[%emt 0:00:50]} Kh7 {[%emt 0:00:17]} 39. Qc2+ {[%emt 0:00:01]} Re4 {[%emt 0:01:19]} 40. Qxb2 {[%emt 0:00:00]} Rb4 {[%emt 0:00:00]} 41. Qc2+ {[%emt 0:02:59]} Qe4 {[%emt 0:05:44]} 42. Qc5 {[%emt 0:06:46]} Qc4 {[%emt 0:03:53]} 43. Qxc4 {[%emt 0:00:42]} dxc4 {[%emt 0:00:08]} 44. Rc1 {[%emt 0:00:06]} 1/2-1/2

[Event "IV Zagreb Open 2019"]
[Site "Zagreb"]
[Date "2019.12.10"]
[Round "5.3"]
[White "Nguyen, Piotr"]
[Black "Kotronias, Vasilios"]
[Result "0-1"]
[ECO "D02"]
[WhiteElo "2413"]
[BlackElo "2506"]
[Annotator "ChessBase"]
[PlyCount "136"]
[EventDate "2019.12.07"]
[EventType "swiss"]
[EventCountry "CRO"]
[SourceTitle "playchess.com"]
[Source "ChessBase"]
[SourceQuality "1"]
[TimeControl "40/5400+30:1800+30"]

1. Nf3 {[%emt 0:00:00]} Nf6 {[%emt 0:01:41]} 2. g3 {[%emt 0:01:15]} d5 {[%emt 0:01:25]} 3. Bg2 {[%emt 0:00:48]} c5 {[%emt 0:00:12]} 4. d4 {[%emt 0:02:04]} cxd4 {[%emt 0:00:04]} 5. O-O {[%emt 0:00:12]} e6 {[%emt 0:01:24]} 6. Nxd4 {[%emt 0:00:13]} Be7 {[%emt 0:01:28]} 7. c4 {[%emt 0:01:27]} O-O {[%emt 0:00:06]} 8. cxd5 {[%emt 0:00:25]} Nxd5 {[%emt 0:02:31]} 9. Qb3 {[%emt 0:02:00]} Nc6 {[%emt 0:08:28]} 10. Nxc6 {[%emt 0:01:28]} bxc6 {[%emt 0:00:03]} 11. e4 {[%emt 0:10:37]} Nb6 {[%emt 0:03:59]} 12. Bf4 {[%emt 0:04:10]} Ba6 {[%emt 0:03:37]} 13. Rc1 {[%emt 0:16:17]} c5 {[%emt 0:01:13]} 14. Qa3 {[%emt 0:08:53]} Bd3 {[%emt 0:04:51]} 15. b3 {[%emt 0:08:44]} c4 {[%emt 0:05:49]} 16. Qb2 {[%emt 0:01:30]} Bc5 {[%emt 0:01:12]} 17. Nc3 {[%emt 0:06:55]} Qe7 {[%emt 0:10:08]} 18. a4 {[%emt 0:02:17]} g5 {[%emt 0:04:37]} 19. Bd2 {[%emt 0:01:59]} Qf6 {[%emt 0:09:18]} 20. Be1 {[%emt 0:01:30]} Rab8 {[%emt 0:00:17]} 21. Nd1 {[%emt 0:02:31]} Bd4 {[%emt 0:04:57]} 22. Bc3 {[%emt 0:00:09]} e5 {[%emt 0:00:04]} 23. Qd2 {[%emt 0:08:45]} Nd7 {[%emt 0:03:18]} 24. bxc4 {[%emt 0:03:32]} Nc5 {[%emt 0:00:25]} 25. Ne3 {[%emt 0:02:20]} Bxe4 {[%emt 0:04:15]} 26. Ng4 {[%emt 0:05:26]} Qg7 {[%emt 0:00:05]} 27. Bxd4 {[%emt 0:00:52]} exd4 {[%emt 0:00:04]} 28. Bxe4 {[%emt 0:00:31]} Nxe4 {[%emt 0:00:05]} 29. Qa5 {[%emt 0:00:04]} Rbe8 {[%emt 0:03:48]} 30. Qf5 {[%emt 0:02:39]} d3 {[%emt 0:08:09]} 31. f3 {[%emt 0:01:52]} h5 {[%emt 0:01:22]} 32. fxe4 {[%emt 0:00:58]} hxg4 {[%emt 0:00:02]} 33. Qxg4 {[%emt 0:03:12]} Qd4+ {[%emt 0:00:10]} 34. Kg2 {[%emt 0:00:37]} f6 {[%emt 0:03:04]} 35. Qf5 {[%emt 0:00:44]} Kg7 {[%emt 0:00:04]} 36. Rf1 {[%emt 0:00:30]} Rxe4 {[%emt 0:02:02]} 37. Ra2 {[%emt 0:00:33]} Qxc4 {[%emt 0:00:55]} 38. Raf2 {[%emt 0:00:20]} Qxa4 {[%emt 0:03:31]} 39. Ra1 {[%emt 0:00:37]} Qc6 {[%emt 0:01:32]} 40. Kg1 {[%emt 0:00:00]} Rf7 {[%emt 0:00:00]} 41. h4 {[%emt 0:12:15]} gxh4 {[%emt 0:10:40]} 42. gxh4 {[%emt 0:00:50]} Rxh4 {[%emt 0:06:13]} 43. Rg2+ {[%emt 0:01:07]} Kf8 {[%emt 0:00:35]} 44. Rb1 {[%emt 0:03:30]} Rb7 {[%emt 0:04:10]} 45. Rf1 {[%emt 0:03:26]} Rh6 {[%emt 0:07:30]} 46. Qxd3 {[%emt 0:00:53]} Qb6+ {[%emt 0:00:09]} 47. Rff2 {[%emt 0:00:54]} Qb1+ {[%emt 0:00:05]} 48. Qf1 {[%emt 0:01:40]} Kf7 {[%emt 0:01:50]} 49. Rf5 {[%emt 0:06:10]} a6 {[%emt 0:04:17]} 50. Rg4 {[%emt 0:02:43]} Rb5 {[%emt 0:02:18]} 51. Qxb1 {[%emt 0:00:43]} Rxb1+ {[%emt 0:00:03]} 52. Kf2 {[%emt 0:00:22]} Rb5 {[%emt 0:00:16]} 53. Rf3 {[%emt 0:00:38]} Rh2+ {[%emt 0:01:43]} 54. Kg3 {[%emt 0:00:19]} Rbh5 {[%emt 0:01:18]} 55. Kf4 {[%emt 0:01:10]} R2h4 {[%emt 0:00:22]} 56. Rc3 {[%emt 0:01:33]} Rxg4+ {[%emt 0:00:25]} 57. Kxg4 {[%emt 0:00:03]} Rb5 {[%emt 0:01:34]} 58. Kf4 {[%emt 0:00:59]} a5 {[%emt 0:00:06]} 59. Rc6 {[%emt 0:00:42]} Kg6 {[%emt 0:00:11]} 60. Rc8 {[%emt 0:00:34]} Rb4+ {[%emt 0:00:04]} 61. Ke3 {[%emt 0:00:08]} a4 {[%emt 0:00:13]} 62. Rc6 {[%emt 0:00:39]} Kg5 {[%emt 0:00:15]} 63. Rc8 {[%emt 0:00:20]} Rb3+ {[%emt 0:00:38]} 64. Ke4 {[%emt 0:00:47]} f5+ {[%emt 0:00:04]} 65. Kd4 {[%emt 0:00:31]} Kf4 {[%emt 0:00:41]} 66. Rc1 {[%emt 0:00:30]} a3 {[%emt 0:00:08]} 67. Rf1+ {[%emt 0:00:19]} Kg4 {[%emt 0:00:16]} 68. Rg1+ {[%emt 0:00:11]} Rg3 {[%emt 0:00:11]} 0-1

[Event "IV Zagreb Open 2019"]
[Site "Zagreb"]
[Date "2019.12.10"]
[Round "5.4"]
[White "Enchev, Ivajlo"]
[Black "Liu, Zhaoqi"]
[Result "1-0"]
[ECO "B08"]
[WhiteElo "2482"]
[BlackElo "2380"]
[Annotator "ChessBase"]
[PlyCount "59"]
[EventDate "2019.12.07"]
[EventType "swiss"]
[EventCountry "CRO"]
[SourceTitle "playchess.com"]
[Source "ChessBase"]
[SourceQuality "1"]
[TimeControl "40/5400+30:1800+30"]

1. d4 {[%emt 0:05:28]} d6 {[%emt 0:00:00]} 2. Nf3 {[%emt 0:00:46]} g6 {[%emt 0:00:00]} 3. e4 {[%emt 0:01:22]} Nf6 {[%emt 0:00:05]} 4. Nc3 {[%emt 0:01:10]} Bg7 {[%emt 0:00:06]} 5. Be2 {[%emt 0:01:44]} O-O {[%emt 0:00:09]} 6. O-O {[%emt 0:00:31]} a6 {[%emt 0:00:08]} 7. a4 {[%emt 0:00:53]} Nc6 {[%emt 0:00:31]} 8. h3 {[%emt 0:02:10]} e5 {[%emt 0:01:21]} 9. dxe5 {[%emt 0:05:36]} Nxe5 {[%emt 0:06:14]} 10. Bg5 {[%emt 0:03:55]} h6 {[%emt 0:09:36]} 11. Bh4 {[%emt 0:01:30]} Bd7 {[%emt 0:14:28]} 12. Nxe5 {[%emt 0:08:46]} dxe5 {[%emt 0:00:15]} 13. f4 {[%emt 0:01:23]} Qe8 {[%emt 0:23:16]} 14. fxe5 {[%emt 0:05:46]} Nh7 {[%emt 0:00:26]} 15. Bf6 {[%emt 0:02:36]} Bc6 {[%emt 0:03:14]} 16. Qd2 {[%emt 0:04:28]} Ng5 {[%emt 0:23:54]} 17. Qf4 {[%emt 0:07:39]} Ne6 {[%emt 0:03:47]} 18. Qg3 {[%emt 0:02:45]} Bxf6 {[%emt 0:05:28]} 19. exf6 {[%emt 0:03:20]} Ng5 {[%emt 0:00:44]} 20. Bc4 {[%emt 0:02:22]} b5 {[%emt 0:00:05]} 21. Bb3 {[%emt 0:20:43]} b4 {[%emt 0:00:17]} 22. Nd5 {[%emt 0:00:40]} Qxe4 {[%emt 0:03:54]} 23. Ne7+ {[%emt 0:01:18]} Kh7 {[%emt 0:00:13]} 24. Rf4 {[%emt 0:01:33]} Qe5 {[%emt 0:00:41]} 25. Nxc6 {[%emt 0:00:52]} Qc5+ {[%emt 0:01:13]} 26. Nd4 {[%emt 0:00:12]} Rad8 {[%emt 0:00:40]} 27. Qf2 {[%emt 0:01:41]} Rfe8 {[%emt 0:00:06]} 28. Nf3 {[%emt 0:01:14]} Qxf2+ {[%emt 0:02:15]} 29. Kxf2 {[%emt 0:00:03]} Ne4+ {[%emt 0:00:03]} 30. Kg1 {[%emt 0:00:47]} 1-0